bitfinex/quotes_SOLUSD_20241029
["timestamp","ask_amount","ask_price","bid_price","bid_amount"]
[1730176520899,4.09724653,182.09,182.08,5.492]
[1730176521116,4.09868406,182.09,182.08,12.86809011]
[1730176521337,8.05260811,182.1,182.08,12.86809011]
[1730176521500,4.09842577,182.09,182.08,5.492]
[1730176521696,4.09839582,182.09,182.08,5.492]
[1730176521920,8.05260811,182.1,182.08,5.492]
[1730176522126,8.05260811,182.1,182.09,7.37609011]
[1730176522335,12.15253335,182.1,182.09,7.37609011]
[1730176522818,8.05260811,182.1,182.09,7.37609011]
[1730176523021,5.4902,182.15,182.09,26.59719011]
[1730176523327,10.6618672,182.14,182.12,7.37609011]
[1730176523500,10.6618672,182.13,182.12,7.37609011]
[1730176524521,4.10071815,182.13,182.12,7.37609011]
[1730176524712,11.19817729,182.16,182.12,7.37609011]
[1730176524919,4.0996798,182.13,182.12,7.37609011]
[1730176525114,10.65948803,182.14,182.12,7.37609011]
[1730176525308,10.65948803,182.13,182.12,7.37609011]
[1730176525626,6.55974165,182.13,182.12,7.37609011]
[1730176525805,4.09980435,182.13,182.12,7.37609011]
[1730176526709,4.09980435,182.13,182.12,12.86689011]
[1730176526911,4.09980435,182.13,182.12,7.37609011]
[1730176527105,5.70857729,182.16,182.12,7.37609011]
[1730176527311,4.09776818,182.15,182.13,7.37609011]
[1730176527511,4.09776818,182.14,182.13,7.37609011]
[1730176527726,4.09776818,182.14,182.12,7.37609011]
[1730176527929,5.70857729,182.16,182.13,7.37609011]
[1730176528229,4.09625473,182.15,182.13,7.37609011]
[1730176528428,4.09464078,182.14,182.13,7.37609011]
[1730176529123,5.70857729,182.16,182.13,7.37609011]
[1730176529329,4.0943158,182.15,182.13,7.37609011]
[1730176529624,5.70857729,182.16,182.14,7.37609011]
[1730176529835,4.0932401,182.15,182.14,7.37609011]
[1730176533245,4.0932401,182.15,182.13,7.37609011]
[1730176533404,12.86519011,182.18,182.08,19.2222]
[1730176533608,12.86519011,182.18,182.13,7.37609011]
[1730176533609,10.63164319,182.17,182.13,7.37609011]
[1730176533831,4.08909353,182.16,182.13,7.37609011]
[1730176534013,12.86519011,182.18,182.13,7.37609011]
[1730176534323,4.08873148,182.17,182.13,7.37609011]
[1730176534529,4.08873148,182.16,182.13,7.37609011]
[1730176534728,5.4893,182.17,182.13,7.37609011]
[1730176534925,4.08824298,182.16,182.13,7.37609011]
[1730176535223,5.4893,182.17,182.13,7.37609011]
[1730176535437,4.08755274,182.16,182.13,7.37609011]
[1730176535729,5.4893,182.17,182.13,7.37609011]
[1730176535921,4.08755671,182.16,182.13,7.37609011]
[1730176536116,5.4893,182.17,182.13,7.37609011]
[1730176536327,4.08713785,182.16,182.13,7.37609011]
[1730176536505,5.4893,182.17,182.14,7.37609011]
[1730176536907,4.08681264,182.16,182.14,7.37609011]
[1730176537113,11.19774813,182.19,182.15,7.37609011]
[1730176537408,4.08613048,182.18,182.15,7.37609011]
[1730176537608,4.08563585,182.17,182.13,7.37609011]
[1730176537807,7.37609011,182.18,182.13,7.37609011]
[1730176538323,12.86519011,182.18,182.13,7.37609011]
[1730176539131,12.86519011,182.18,182.13,12.86659011]
[1730176539630,5.4891,182.18,182.14,7.37609011]
[1730176542025,5.4891,182.18,182.15,7.37609011]
[1730176542632,5.70874813,182.19,182.17,7.37609011]
[1730176542831,12.86299011,182.25,182.18,7.37609011]
[1730176543035,12.86299011,182.25,182.13,19.2169]
[1730176543036,13.36138296,182.24,182.2,7.37609011]
[1730176543217,10.61314328,182.23,182.2,7.37609011]
[1730176543417,4.08197818,182.22,182.19,7.37609011]
[1730176543632,7.37609011,182.24,182.19,7.37609011]
[1730176543913,10.61139566,182.23,182.21,7.37609011]
[1730176544129,4.08130602,182.22,182.21,7.37609011]
[1730176544336,5.4873,182.24,182.2,7.37609011]
[1730176544538,5.4873,182.24,182.21,7.37609011]
[1730176544716,4.08063916,182.23,182.22,7.37609011]
[1730176545041,4.08053726,182.23,182.21,7.37609011]
[1730176545214,7.37609011,182.25,182.2,7.37609011]
[1730176545413,4.08157201,182.24,182.2,7.37609011]
[1730176545616,4.08157201,182.23,182.2,7.37609011]
[1730176545922,18.56668928,182.25,182.2,7.37609011]
[1730176546122,17.98605235,182.24,182.19,7.37609011]
[1730176546323,4.08075471,182.23,182.19,7.37609011]
[1730176547519,4.08075471,182.23,182.2,7.37609011]
[1730176547722,18.56668928,182.25,182.2,7.37609011]
[1730176547921,10.60933349,182.24,182.2,7.37609011]
[1730176548842,4.08066911,182.23,182.2,7.37609011]
[1730176549041,18.56668928,182.25,182.2,7.37609011]
[1730176549240,4.08068009,182.24,182.2,7.37609011]
[1730176549545,10.61060408,182.24,182.2,7.37609011]
[1730176550046,10.61060408,182.24,182.14,46.6673]
[1730176550047,4.08068009,182.24,182.21,7.37609011]
[1730176550344,4.08068009,182.23,182.21,7.37609011]
[1730176550545,5.4873,182.24,182.21,7.37609011]
[1730176550751,4.08179263,182.23,182.21,7.37609011]
[1730176550927,5.4873,182.24,182.21,7.37609011]
[1730176551131,5.70339917,182.25,182.21,7.37609011]
[1730176552346,13.07948928,182.25,182.2,7.37609011]
[1730176552547,13.07948928,182.25,182.19,13.7219]
[1730176552848,13.07948928,182.25,182.2,12.86449011]
[1730176556429,13.07948928,182.25,182.2,5.4884]
[1730176556632,4.08399382,182.24,182.2,12.86449011]
[1730176556853,18.56638928,182.25,182.2,12.86449011]
[1730176557036,4.08401811,182.24,182.2,12.86449011]
[1730176557241,18.56638928,182.25,182.2,12.86449011]
[1730176557429,4.08426078,182.24,182.2,5.4884]
[1730176557631,18.56638928,182.25,182.21,7.37609011]
[1730176557830,4.08424395,182.24,182.21,7.37609011]
[1730176558053,18.56638928,182.25,182.21,7.37609011]
[1730176558239,4.08426102,182.24,182.21,7.37609011]
[1730176558435,18.56638928,182.25,182.14,27.4514]
[1730176558632,4.08486346,182.24,182.21,7.37609011]
[1730176558833,11.19029917,182.25,182.21,7.37609011]
[1730176559040,4.08486346,182.24,182.21,7.37609011]
[1730176559231,11.19029917,182.25,182.21,7.37609011]
[1730176559435,4.08444353,182.24,182.21,7.37609011]
[1730176559633,11.19029917,182.25,182.21,7.37609011]
[1730176559952,4.08566845,182.24,182.21,7.37609011]
[1730176560127,11.19029917,182.25,182.21,7.37609011]
[1730176560328,4.08566895,182.24,182.21,7.37609011]
[1730176560529,11.19029917,182.25,182.16,19.2137]
[1730176560749,7.37609011,182.22,182.16,19.2137]
[1730176561048,4.08754294,182.21,182.16,19.2137]
[1730176561348,11.46363305,182.2,182.16,19.2137]
[1730176561545,7.37609011,182.2,182.16,19.2137]
[1730176562051,7.37609011,182.22,182.17,7.37609011]
[1730176562233,10.63209545,182.21,182.17,7.37609011]
[1730176562429,4.0892686,182.2,182.17,7.37609011]
[1730176562631,4.0892686,182.19,182.16,13.7241]
[1730176562853,7.37609011,182.21,182.16,21.10019011]
[1730176563037,12.86419011,182.21,182.16,26.58979011]
[1730176563238,4.09025245,182.2,182.16,26.58979011]
[1730176563545,4.09025245,182.19,182.18,7.37609011]
[1730176563730,36.85668608,182.23,182.18,7.37609011]
[1730176564047,18.01405704,182.22,182.16,19.2137]
[1730176564352,10.64042174,182.21,182.17,7.37609011]
[1730176565039,10.64042174,182.21,182.16,19.2137]
[1730176565040,18.01651185,182.21,182.16,21.10019011]
[1730176565237,7.37609011,182.18,182.13,26.59299011]
[1730176565550,7.37609011,182.18,182.13,19.2169]
[1730176565741,7.37609011,182.16,182.13,19.2169]
[1730176566946,7.37609011,182.16,182.13,13.7264]
[1730176567151,7.37609011,182.16,182.11,7.37609011]
[1730176567335,7.37609011,182.14,182.1,13.7287]
[1730176567645,7.37609011,182.12,182.1,13.7287]
[1730176568237,7.37609011,182.13,182.1,13.7287]
[1730176568438,4.09988171,182.12,182.1,13.7287]
[1730176568632,7.37609011,182.13,182.1,13.7287]
[1730176568934,4.09991315,182.12,182.1,13.7287]
[1730176569132,7.37609011,182.13,182.08,7.37609011]
[1730176569347,7.37609011,182.11,182.06,19.2238]
[1730176569541,4.10001654,182.1,182.06,19.2238]
[1730176569954,7.37609011,182.09,182.06,19.2238]
[1730176570454,7.37609011,182.09,182.06,13.7312]
[1730176571735,7.37609011,182.1,182.06,13.7312]
[1730176571957,7.37609011,182.1,182.06,19.2238]
[1730176571958,4.09982311,182.09,182.06,19.2238]
[1730176572149,7.37609011,182.1,182.06,19.2238]
[1730176573541,7.37609011,182.09,182.06,13.7312]
[1730176573742,23.776884,182.1,182.06,13.7312]
[1730176573948,4.09857034,182.09,182.06,13.7312]
[1730176574151,31.15297411,182.1,182.06,13.7312]
[1730176574741,7.37609011,182.07,182.02,39.2283]
[1730176575057,7.37609011,182.07,182.02,19.2283]
[1730176575252,7.37609011,182.05,182.02,19.2283]
[1730176575451,7.37609011,182.04,182.02,13.7344]
[1730176575655,7.37609011,182.03,181.99,6.1047757]
[1730176575860,7.37609011,182.02,181.99,6.1047757]
[1730176576048,7.37609011,182.03,181.99,14.3472757]
[1730176576953,7.37609011,182.04,181.99,14.3472757]
[1730176578172,7.37609011,182.04,181.99,19.8420757]
[1730176578863,7.37609011,182.04,181.99,27.21816581]
[1730176580238,31.15297411,182.05,181.99,27.21816581]
[1730176580552,7.37609011,182.03,181.99,0.6102757]
[1730176581064,31.15297411,182.0,181.99,0.6102757]
[1730176582162,36.86251078,182.0,181.99,0.6102757]
[1730176584264,42.35701078,182.0,181.99,0.6102757]
[1730176587154,71.86137122,182.0,181.99,0.6102757]
[1730176591053,141.96137122,182.0,181.99,0.6102757]
[1730176591253,142.06137122,182.0,181.99,0.6102757]
[1730176591769,42.35701078,182.0,181.99,0.6102757]
[1730176592761,41.20403667,182.0,181.99,0.6102757]
[1730176592964,48.58012678,182.0,181.99,0.6102757]
[1730176594048,43.08562678,182.0,181.99,0.6102757]
[1730176594280,5.70953667,182.0,181.99,0.6102757]
[1730176594460,18.58012678,182.0,181.99,0.6102757]
[1730176595482,42.35701078,182.0,181.99,0.6102757]
[1730176595977,34.98092067,182.0,181.99,0.6102757]
[1730176596179,42.35701078,182.0,181.99,0.6102757]
[1730176597757,34.98092067,182.0,181.99,0.6102757]
[1730176598255,5.70953667,182.0,181.99,7.98636581]
[1730176598773,5.71644269,182.03,181.99,7.98636581]
[1730176599369,5.71644269,182.03,181.99,0.6102757]
[1730176599582,7.37609011,182.07,182.0,13.7362]
[1730176599765,13.08418714,182.04,181.99,7.98636581]
[1730176600081,7.37609011,182.05,182.0,7.37609011]
[1730176600382,5.7127859,182.04,182.01,7.37609011]
[1730176601367,23.776884,182.03,182.01,7.37609011]
[1730176603080,5.7127859,182.04,182.01,7.37609011]
[1730176603385,23.776884,182.03,182.01,7.37609011]
[1730176605283,5.7127859,182.04,182.01,7.37609011]
[1730176605480,5.7127859,182.04,182.02,7.37609011]
[1730176609366,23.776884,182.03,182.0,7.37609011]
[1730176609587,23.776884,182.03,181.99,0.6102757]
[1730176609969,23.776884,182.03,181.99,7.98636581]
[1730176611076,23.776884,182.03,181.99,0.6102757]
[1730176611272,23.776884,182.01,181.99,0.6102757]
[1730176612284,36.64717411,182.01,181.99,0.6102757]
[1730176612584,31.15297411,182.0,181.99,0.6102757]
[1730176612788,35.24312224,182.0,181.99,0.6102757]
[1730176613682,40.73762224,182.0,181.99,0.6102757]
[1730176613874,41.20473467,182.0,181.99,0.6102757]
[1730176614281,47.75567134,182.0,181.99,0.6102757]
[1730176614475,47.75588226,182.0,181.99,0.6102757]
[1730176614785,80.011483,182.0,181.99,0.6102757]
[1730176615697,50.50712256,182.0,181.99,0.6102757]
[1730176616064,80.50712256,182.0,181.99,0.6102757]
[1730176616287,87.30151345,182.0,181.99,0.6102757]
[1730176617090,87.30151345,182.0,181.91,7.37609011]
[1730176617385,23.776884,181.95,181.91,7.37609011]
[1730176618684,23.776884,181.95,181.9,12.87329011]
[1730176619190,23.776884,181.95,181.91,7.37609011]
[1730176619571,23.776884,181.95,181.92,7.37609011]
[1730176621287,4.10316306,181.94,181.92,7.37609011]
[1730176621592,29.48641204,181.95,181.91,5.4972]
[1730176621774,29.48641204,181.95,181.91,12.87329011]
[1730176622176,4.10369354,181.94,181.91,12.87329011]
[1730176622506,29.48641204,181.95,181.91,12.87329011]
[1730176622718,4.10357829,181.94,181.91,12.87329011]
[1730176622879,29.48641204,181.95,181.91,12.87329011]
[1730176623193,4.1035788,181.94,181.91,12.87329011]
[1730176623395,29.48641204,181.95,181.91,12.87329011]
[1730176623591,4.10425602,181.94,181.9,19.2413]
[1730176623793,29.48641204,181.95,181.91,7.37609011]
[1730176624092,4.10425551,181.94,181.9,19.2413]
[1730176624273,29.48641204,181.95,181.91,7.37609011]
[1730176624590,11.48108594,181.94,181.89,16.5139]
[1730176624901,7.37609011,181.94,181.89,29.38769011]
[1730176625578,42.35850215,181.95,181.9,7.37609011]
[1730176625798,4.10594906,181.94,181.9,12.87359011]
[1730176625972,5.70952804,181.95,181.92,7.37609011]
[1730176626180,4.10590934,181.94,181.93,7.37609011]
[1730176626389,5.70952804,181.95,181.93,7.37609011]
[1730176626587,5.70952804,181.95,181.92,7.37609011]
[1730176639582,4.10754566,181.94,181.92,7.37609011]
[1730176639813,5.70952804,181.95,181.92,7.37609011]
[1730176642587,10.68120074,181.94,181.92,7.37609011]
[1730176642909,10.68120074,181.93,181.92,7.37609011]
[1730176643100,10.68120074,181.94,181.92,7.37609011]
[1730176643410,4.10815413,181.93,181.89,16.5139]
[1730176643613,12.87089011,181.99,181.92,7.37609011]
[1730176643781,7.37609011,181.97,181.92,7.37609011]
[1730176644102,10.67871052,181.96,181.92,7.37609011]
[1730176644482,18.05480063,181.96,181.91,7.37609011]
[1730176644689,41.8316127,181.95,181.9,7.37609011]
[1730176644884,10.67863859,181.94,181.9,29.50436044]
[1730176645079,4.10719635,181.93,181.89,19.2423]
[1730176645303,19.71667645,181.98,181.89,19.2423]
[1730176645607,41.83192764,181.97,181.89,19.2423]
[1730176645786,10.67895353,181.96,181.92,7.37609011]
[1730176645981,10.67895353,181.95,181.92,6.90897768]
[1730176646180,10.67895353,181.94,181.92,6.90897768]
[1730176646413,4.10728982,181.93,181.92,6.90897768]
[1730176646691,4.10728982,181.93,181.92,12.40577768]
[1730176647082,10.6796608,181.96,181.92,12.40577768]
[1730176647310,10.68028496,181.95,181.93,7.37609011]
[1730176647493,4.10728982,181.94,181.93,7.37609011]
[1730176647687,4.10728982,181.94,181.93,26.61419011]
[1730176647902,5.71414665,181.99,181.93,26.61419011]
[1730176648109,10.67977838,181.98,181.96,7.37609011]
[1730176648286,4.10760707,181.97,181.96,7.37609011]
[1730176649406,4.10760707,181.98,181.96,7.37609011]
[1730176649700,4.10760707,181.97,181.95,13.7393]
[1730176650011,4.10760707,181.96,181.95,13.7393]
[1730176650197,4.10760707,181.96,181.93,5.4966]
[1730176650388,7.37609011,181.97,181.92,13.7422]
[1730176650588,10.6851723,181.96,181.92,21.11829011]
[1730176650799,12.87149011,181.97,181.92,13.7422]
[1730176650988,4.10977924,181.96,181.92,13.7422]
[1730176651196,4.11038083,181.95,181.92,13.7422]
[1730176651396,12.87149011,181.97,181.92,21.11829011]
[1730176651615,4.11048079,181.96,181.92,21.11829011]
[1730176651905,4.11048079,181.95,181.92,21.11829011]
[1730176652106,23.776884,182.0,181.92,13.7422]
[1730176652107,12.87179011,181.96,181.92,13.7422]
[1730176652302,10.69003292,181.95,181.92,13.7422]
[1730176653219,4.11136837,181.94,181.92,13.7422]
[1730176653409,12.87179011,181.96,181.92,13.7422]
[1730176653410,4.11136837,181.93,181.92,13.7422]
[1730176653609,4.11136837,181.95,181.92,26.61519011]
[1730176653786,10.69165259,181.94,181.92,26.61519011]
[1730176653985,4.11136837,181.93,181.92,13.7422]
[1730176654190,9.60676837,181.97,181.92,26.61519011]
[1730176654394,10.69332769,181.96,181.94,7.37609011]
[1730176654594,6.85063472,181.98,181.94,7.37609011]
[1730176654595,5.4951,181.98,181.94,7.37609011]
[1730176654899,4.11362559,181.97,181.93,7.37609011]
[1730176655218,10.69583081,181.96,181.94,7.37609011]
[1730176655514,10.69583081,181.95,181.94,7.37609011]
[1730176656099,4.11378108,181.95,181.93,7.37609011]
[1730176656300,10.69583081,181.94,181.93,7.37609011]
[1730176656606,10.69583081,181.94,181.92,26.61519011]
[1730176656791,10.69583081,181.93,181.92,26.61519011]
[1730176657204,4.11378108,181.93,181.92,26.61519011]
[1730176658617,12.87149011,181.97,181.92,26.61519011]
[1730176658816,6.59183581,181.93,181.92,26.61519011]
[1730176658997,4.11989738,181.93,181.92,26.61519011]
[1730176659910,10.71173319,181.93,181.92,26.61519011]
[1730176660113,10.71173319,181.93,181.92,7.37609011]
[1730176660296,4.11989738,181.93,181.92,7.37609011]
[1730176660495,10.71173319,181.93,181.92,7.37609011]
[1730176661317,4.11989738,181.93,181.92,7.37609011]
[1730176661918,10.71173319,181.93,181.92,7.37609011]
[1730176662100,4.11989738,181.93,181.92,7.37609011]
[1730176662418,10.71173319,181.93,181.92,7.37609011]
[1730176662713,10.71173319,181.93,181.91,7.37609011]
[1730176662918,10.71173319,181.92,181.9,21.11989011]
[1730176663116,10.71214178,181.91,181.88,5.4981]
[1730176663325,4.11989738,181.9,181.88,12.87419011]
[1730176663613,4.11989738,181.89,181.88,12.87419011]
[1730176666519,12.87239011,181.94,181.88,12.87419011]
[1730176666716,19.73528544,181.94,181.88,12.87419011]
[1730176666919,12.87239011,181.94,181.89,7.37609011]
[1730176667217,10.70611007,181.93,181.91,7.37609011]
[1730176667397,10.70611007,181.92,181.91,7.37609011]
[1730176667600,10.70611007,181.92,181.9,7.37609011]
[1730176667802,10.70611007,181.91,181.9,7.37609011]
[1730176668202,10.70611007,181.91,181.89,5.4977]
[1730176668426,4.11773464,181.9,181.89,5.4977]
[1730176669722,4.11773464,181.9,181.87,13.746]
[1730176669908,4.11773464,181.89,181.87,19.2444]
[1730176670109,6.86289107,181.94,181.88,7.37609011]
[1730176670409,10.70050275,181.93,181.9,7.37609011]
[1730176670735,10.70050275,181.92,181.9,7.37609011]
[1730176670915,10.70050275,181.91,181.9,7.37609011]
[1730176674122,4.11557798,181.91,181.9,7.37609011]
[1730176674427,4.11462363,181.91,181.9,7.37609011]
[1730176677506,4.11462363,181.91,181.89,7.37609011]
[1730176677826,4.11462363,181.9,181.89,7.37609011]
[1730176678334,4.11462363,181.9,181.88,7.37609011]
[1730176678513,7.37609011,181.92,181.87,13.746]
[1730176679019,10.69801421,181.91,181.87,21.12209011]
[1730176679208,10.69801421,181.9,181.87,21.12209011]
[1730176679404,4.11462085,181.89,181.87,21.12209011]
[1730176679742,4.11462085,181.88,181.87,26.62049011]
[1730176680027,4.11462085,181.88,181.87,19.2444]
[1730176680232,4.11462085,181.88,181.86,7.37609011]
[1730176680405,12.87349011,181.91,181.85,5.499]
[1730176680406,4.11489763,181.87,181.85,5.499]
[1730176680608,4.11506276,181.86,181.85,12.87509011]
[1730176680815,4.11510537,181.86,181.84,19.2475]
[1730176681015,4.11510537,181.89,181.85,7.37609011]
[1730176681225,10.69940903,181.88,181.86,7.37609011]
[1730176681423,4.11515732,181.87,181.86,7.37609011]
[1730176682430,4.11515732,181.87,181.85,12.87499011]
[1730176682613,5.4975,181.9,181.85,12.87499011]
[1730176682817,10.69459576,181.89,181.85,12.87499011]
[1730176683019,10.69459576,181.88,181.85,12.87499011]
[1730176683236,4.11330606,181.87,181.85,12.87499011]
[1730176683531,5.4975,181.9,181.85,12.87499011]
[1730176683723,10.69296564,181.89,181.86,7.37609011]
[1730176683915,4.11267909,181.88,181.86,7.37609011]
[1730176684234,4.11267909,181.87,181.86,7.37609011]
[1730176684928,4.11267909,181.87,181.84,19.2472]
[1730176685130,12.87359011,181.9,181.85,7.37609011]
[1730176685323,10.69017692,181.89,181.87,7.37609011]
[1730176685524,11.48769662,181.88,181.84,19.2472]
[1730176685712,4.11160651,181.87,181.84,19.2472]
[1730176686034,4.11160651,181.87,181.84,26.62329011]
[1730176686232,4.11143208,181.86,181.85,7.37609011]
[1730176686535,7.37609011,181.9,181.85,7.37609011]
[1730176686740,10.68956,181.89,181.84,19.2472]
[1730176686920,10.68956,181.88,181.85,7.37609011]
[1730176687117,4.11136923,181.87,181.85,7.37609011]
[1730176687319,12.87369011,181.9,181.85,7.37609011]
[1730176687626,10.68880063,181.89,181.85,7.37609011]
[1730176687832,10.68880063,181.88,181.85,7.37609011]
[1730176688033,12.87369011,181.9,181.85,7.37609011]
[1730176688034,4.11107716,181.87,181.85,7.37609011]
[1730176688242,12.87369011,181.9,181.85,7.37609011]
[1730176688414,10.68814153,181.89,181.85,7.37609011]
[1730176689115,10.68814153,181.89,181.86,7.37609011]
[1730176689435,5.4976,181.9,181.86,7.37609011]
[1730176689627,10.68705534,181.89,181.86,7.37609011]
[1730176689825,4.11038143,181.88,181.86,19.2454]
[1730176690135,5.71686205,181.91,181.87,7.37609011]
[1730176690319,10.68667181,181.9,181.87,7.37609011]
[1730176690637,10.68667181,181.89,181.87,7.37609011]
[1730176690825,5.4972,181.91,181.87,7.37609011]
[1730176691131,4.10997417,181.9,181.87,7.37609011]
[1730176691336,4.10997417,181.89,181.87,7.37609011]
[1730176691531,5.4972,181.91,181.87,7.37609011]
[1730176691718,10.68604589,181.9,181.87,7.37609011]
[1730176691923,10.68604589,181.9,181.88,7.37609011]
[1730176692635,5.4968,181.93,181.89,7.37609011]
[1730176692935,10.68527528,181.92,181.89,7.37609011]
[1730176693135,10.68527528,181.91,181.89,7.37609011]
[1730176693340,4.10972126,181.9,181.89,7.37609011]
[1730176693525,4.10972126,181.92,181.89,7.37609011]
[1730176693729,4.10972126,181.91,181.88,7.37609011]
[1730176693920,4.10972126,181.9,181.88,7.37609011]
[1730176694119,12.87289011,181.93,181.88,7.37609011]
[1730176694338,10.68691073,181.92,181.88,7.37609011]
[1730176694550,10.68691073,181.91,181.88,7.37609011]
[1730176694755,4.11035028,181.9,181.88,7.37609011]
[1730176694942,4.11035028,181.89,181.88,7.37609011]
[1730176695139,4.11035028,181.92,181.88,7.37609011]
[1730176695439,10.68837103,181.91,181.88,7.37609011]
[1730176695632,4.11035028,181.9,181.88,7.37609011]
[1730176695835,4.11035028,181.89,181.88,7.37609011]
[1730176696041,4.11035028,181.92,181.88,7.37609011]
[1730176696224,10.68857029,181.91,181.88,7.37609011]
[1730176696424,10.68857029,181.9,181.88,7.37609011]
[1730176696641,4.11035028,181.89,181.88,7.37609011]
[1730176696839,4.11035028,181.92,181.88,7.37609011]
[1730176697047,10.68954908,181.91,181.89,7.37609011]
[1730176697347,4.11194807,181.9,181.84,20.0]
[1730176697527,13.09472538,181.95,181.89,7.37609011]
[1730176697725,10.69212045,181.94,181.9,7.37609011]
[1730176697932,10.69212045,181.93,181.9,7.37609011]
[1730176698252,4.1122819,181.92,181.91,7.37609011]
[1730176699125,4.1122819,181.92,181.9,7.37609011]
[1730176699326,5.4963,181.94,181.9,7.37609011]
[1730176699528,10.69426281,181.93,181.9,7.37609011]
[1730176699733,4.113178,181.92,181.9,7.37609011]
[1730176699941,4.113178,181.91,181.9,7.37609011]
[1730176700139,4.113178,181.93,181.9,7.37609011]
[1730176700333,4.113178,181.92,181.91,7.37609011]
[1730176700735,4.113178,181.92,181.87,13.7458]
[1730176700935,5.71863527,181.95,181.91,7.37609011]
[1730176701141,5.71863527,181.95,181.87,13.7458]
[1730176701142,10.69487182,181.94,181.92,7.37609011]
[1730176701337,10.69487182,181.93,181.92,7.37609011]
[1730176701541,10.69644332,181.93,181.92,7.37609011]
[1730176701753,4.11401666,181.93,181.92,7.37609011]
[1730176702441,10.69710413,181.93,181.92,7.37609011]
[1730176702748,4.11401666,181.93,181.92,7.37609011]
[1730176702931,4.11401666,181.95,181.92,7.37609011]
[1730176703139,10.69683143,181.94,181.93,7.37609011]
[1730176703340,10.69683143,181.94,181.91,5.4969]
[1730176703341,10.69683143,181.94,181.92,7.37609011]
[1730176703546,4.11401666,181.93,181.92,7.37609011]
[1730176704238,4.11401666,181.95,181.92,7.37609011]
[1730176704440,10.6973654,181.94,181.92,7.37609011]
[1730176704739,4.11401666,181.93,181.92,7.37609011]
[1730176705056,11.21390081,181.96,181.92,7.37609011]
[1730176705350,10.69804346,181.95,181.92,7.37609011]
[1730176706631,16.19424346,181.95,181.91,7.37609011]
[1730176706830,10.69804346,181.94,181.91,7.37609011]
[1730176708154,10.69804346,181.94,181.92,7.37609011]
[1730176709130,10.70174348,181.93,181.92,7.37609011]
[1730176709744,10.70174348,181.94,181.92,7.37609011]
[1730176709938,10.70174348,181.93,181.91,7.37609011]
[1730176710137,4.11605518,181.92,181.91,7.37609011]
[1730176711843,4.11605518,181.93,181.91,7.37609011]
[1730176712039,4.11605518,181.92,181.91,7.37609011]
[1730176712645,4.11605518,181.93,181.91,7.37609011]
[1730176712847,4.11605518,181.92,181.91,7.37609011]
[1730176713551,5.496,181.95,181.91,7.37609011]
[1730176713746,4.11614392,181.92,181.89,13.7438]
[1730176713944,11.21390081,181.96,181.91,7.37609011]
[1730176714158,10.70164953,181.95,181.93,7.37609011]
[1730176717145,10.70164953,181.95,181.92,7.37609011]
[1730176718756,5.4932,182.04,181.94,7.37609011]
[1730176718964,10.69826498,182.03,181.98,7.37609011]
[1730176719260,10.69826498,182.02,181.98,7.37609011]
[1730176719455,5.71423001,182.03,181.98,7.37609011]
[1730176719456,10.69826498,182.01,181.98,7.37609011]
[1730176719661,10.69826498,182.0,181.98,7.37609011]
[1730176719858,10.69826498,181.99,181.94,13.74]
[1730176720063,5.494,182.02,181.98,7.37609011]
[1730176720354,10.69123215,182.01,181.98,7.37609011]
[1730176720539,10.69123215,182.0,181.98,7.37609011]
[1730176720743,10.69123215,181.99,181.98,7.37609011]
[1730176721059,10.69123215,181.99,181.96,5.4956]
[1730176721238,12.87009011,182.02,181.97,7.37609011]
[1730176721239,4.11201236,181.98,181.97,7.37609011]
[1730176721441,4.11082998,181.98,181.97,7.37609011]
[1730176725765,4.10712567,181.98,181.97,7.37609011]
[1730176726158,5.4942,182.01,181.97,7.37609011]
[1730176726350,4.10634355,182.0,181.94,13.74]
[1730176726554,4.10634355,181.99,181.97,7.37609011]
[1730176726867,5.4942,182.01,181.97,7.37609011]
[1730176727059,10.67677552,182.0,181.97,7.37609011]
[1730176727644,5.4942,182.01,181.97,7.37609011]
[1730176727845,4.1058849,182.0,181.97,7.37609011]
[1730176728053,4.1058849,181.99,181.97,7.37609011]
[1730176728245,5.4942,182.01,181.97,7.37609011]
[1730176728560,4.10559391,182.0,181.97,7.37609011]
[1730176728744,4.10559391,181.99,181.97,7.37609011]
[1730176728945,5.4942,182.01,181.97,7.37609011]
[1730176729144,4.10562454,182.0,181.97,7.37609011]
[1730176729346,4.10562454,181.99,181.97,7.37609011]
[1730176729675,5.4942,182.01,181.98,7.37609011]
[1730176729973,4.10535961,182.0,181.98,7.37609011]
[1730176730145,4.10535961,181.99,181.98,7.37609011]
[1730176731457,11.20803001,182.03,181.98,7.37609011]
[1730176731766,10.67290214,182.02,181.99,7.37609011]
[1730176731966,4.10496236,182.01,181.99,7.37609011]
[1730176732260,11.20803001,182.03,181.99,7.37609011]
[1730176732462,4.10476038,182.02,181.98,7.37609011]
[1730176732668,10.67281864,182.01,181.98,7.37609011]
[1730176732846,4.10476038,182.0,181.98,7.37609011]
[1730176733047,5.494,182.02,181.98,7.37609011]
[1730176733363,10.67362228,182.01,181.98,7.37609011]
[1730176733566,4.10523934,182.0,181.98,7.37609011]